bitfinex-derivatives/quotes_SOLF0:USTF0_20250527
["timestamp","ask_amount","ask_price","bid_price","bid_amount"]
[1748367036652,0.03538678,178.32,178.3,5.6057]
[1748367036946,0.03538678,178.32,178.29,0.0399207]
[1748367037149,0.03538678,178.32,178.3,5.6057]
[1748367037347,0.03538678,178.32,178.29,0.0399207]
[1748367039244,5.64048678,178.32,178.29,0.0399207]
[1748367039743,0.03538678,178.32,178.29,0.0399207]
[1748367040249,0.03538678,178.32,178.31,5.6054]
[1748367040646,0.03538678,178.32,178.29,0.0399207]
[1748367041763,5.64048678,178.32,178.29,0.0399207]
[1748367041943,0.03538678,178.32,178.29,0.0399207]
[1748367042748,0.03538678,178.32,178.31,5.6054]
[1748367043751,0.03538678,178.32,178.3,5.6056]
[1748367044251,0.03538678,178.32,178.29,0.0399207]
[1748367044641,0.03538678,178.32,178.3,5.6057]
[1748367045545,40.9828703,178.32,178.29,0.0399207]
[1748367045740,40.9828703,178.32,178.21,31.12]
[1748367045944,40.94748352,178.32,178.21,31.12]
[1748367046154,9.82748352,178.29,178.21,31.12]
[1748367046356,9.82748352,178.3,178.21,31.12]
[1748367046654,5.6061,178.29,178.26,5.6068]
[1748367046842,5.64614246,178.29,178.26,5.64384036]
[1748367047047,5.64614246,178.29,178.26,0.03704036]
[1748367047252,5.64614246,178.29,178.26,5.64384036]
[1748367047850,5.6064,178.28,178.26,5.64384036]
[1748367048049,5.6064,178.28,178.26,0.03704036]
[1748367048747,5.6067,178.27,178.26,0.03704036]
[1748367048949,40.94748352,178.27,178.17,515.68]
[1748367049153,40.94748352,178.27,178.17,31.12]
[1748367049549,5.6082,178.23,178.19,5.609]
[1748367049945,5.64715789,178.23,178.19,5.64750445]
[1748367050550,0.03895789,178.23,178.19,5.64750445]
[1748367050944,0.03895789,178.23,178.2,5.6086]
[1748367051151,0.03895789,178.23,178.19,0.03850445]
[1748367051547,36.7284,178.22,178.19,0.03850445]
[1748367051847,31.12,178.22,178.19,0.03850445]
[1748367052452,5.6086,178.21,178.19,0.03850445]
[1748367057260,31.12,178.22,178.19,0.03850445]
[1748367057862,5.6089,178.2,178.19,0.03850445]
[1748367058855,5.6086,178.21,178.19,0.03850445]
[1748367059663,5.6089,178.2,178.19,0.03850445]
[1748367061567,5.6086,178.21,178.19,0.03850445]
[1748367062860,31.12,178.22,178.19,0.03850445]
[1748367063059,0.03895789,178.23,178.19,0.03850445]
[1748367063257,0.03895789,178.23,178.22,5.6082]
[1748367063455,5.789e-05,178.23,178.22,5.6082]
[1748367065659,31.14,178.32,178.29,5.6057]
[1748367066161,31.14,178.32,178.24,31.14]
[1748367066764,0.03965599,178.3,178.26,0.0430652]
[1748367068065,0.03965599,178.3,178.29,5.606]
[1748367069567,0.03965599,178.3,178.26,0.0430652]
[1748367070170,5.64545599,178.3,178.26,0.0430652]
[1748367070471,0.03965599,178.3,178.27,5.6066]
[1748367072059,5.64545599,178.3,178.27,5.6066]
[1748367072264,0.03965599,178.3,178.26,0.0430652]
[1748367072666,5.6066,178.28,178.26,0.0430652]
[1748367073566,5.6061,178.29,178.26,0.0430652]
[1748367074272,5.6064,178.28,178.26,0.0430652]
[1748367074473,0.03965599,178.3,178.26,0.0430652]
[1748367074773,5.6063,178.29,178.26,0.0430652]
[1748367074963,5.6063,178.29,178.26,5.6498652]
[1748367075881,5.6064,178.28,178.26,0.0430652]
[1748367077169,5.6066,178.27,178.26,0.0430652]
[1748367077472,9.82748352,178.26,178.19,5.6089]
[1748367077776,5.6079,178.23,178.19,5.6089]
[1748367078281,5.64628747,178.23,178.2,5.6087]
[1748367078681,5.64628747,178.23,178.19,0.03848634]
[1748367079882,0.03818747,178.23,178.2,5.6086]
[1748367080176,0.03818747,178.23,178.19,0.03848634]
[1748367080378,5.6084,178.22,178.19,5.64748634]
[1748367080684,0.03818747,178.23,178.19,0.03848634]
[1748367081085,0.03818747,178.23,178.2,5.6088]
[1748367081286,0.03818747,178.23,178.19,0.03848634]
[1748367082788,5.6083,178.22,178.19,0.03848634]
[1748367083689,5.6083,178.22,178.19,5.64758634]
[1748367084490,5.64618747,178.23,178.2,5.6087]
[1748367084789,0.03818747,178.23,178.19,0.03848634]
[1748367084984,5.6087,178.21,178.19,0.03848634]
[1748367085290,0.03818747,178.23,178.19,0.03848634]
[1748367085483,5.64618747,178.23,178.19,0.03848634]
[1748367085787,0.03818747,178.23,178.19,0.03848634]
[1748367086684,0.03818747,178.23,178.22,5.6082]
[1748367089377,8.747e-05,178.23,178.22,5.6082]
[1748367092791,31.08,178.33,178.22,5.62]
[1748367093091,31.08,178.33,178.24,9.82748352]
[1748367093391,31.08,178.33,178.31,5.6052]
[1748367094091,31.08,178.33,178.32,5.6051]
[1748367094496,0.03813618,178.34,178.3,0.04154589]
[1748367094681,0.03813618,178.34,178.33,5.6047]
[1748367095086,0.03813618,178.34,178.3,0.04154589]
[1748367095285,0.03813618,178.34,178.31,5.6051]
[1748367095585,0.03813618,178.34,178.3,0.04154589]
[1748367098297,5.6054,178.31,178.3,0.04154589]
[1748367100100,5.6051,178.32,178.3,0.04154589]
[1748367100895,0.03813618,178.34,178.3,0.04154589]
[1748367101304,5.6051,178.32,178.3,0.04154589]
[1748367102201,0.03813618,178.34,178.3,0.04154589]
[1748367103904,5.64263618,178.34,178.3,0.04154589]
[1748367104299,5.64263618,178.34,178.31,5.6054]
[1748367105107,5.64263618,178.34,178.3,5.64714589]
[1748367105305,0.03813618,178.34,178.3,0.04154589]
[1748367105803,5.6048,178.33,178.3,0.04154589]
[1748367107196,5.6052,178.32,178.3,0.04154589]
[1748367108205,0.03813618,178.34,178.3,0.04154589]
[1748367108598,0.03813618,178.34,178.32,5.605]
[1748367108908,0.03813618,178.34,178.3,0.04154589]
[1748367109310,0.03813618,178.34,178.33,5.6047]
[1748367111004,0.03813618,178.34,178.3,0.04154589]
[1748367111397,5.6054,178.31,178.3,0.04154589]
[1748367114604,5.6063,178.28,178.21,484.54]
[1748367114804,40.84748352,178.32,178.21,484.54]
[1748367115006,5.6062,178.29,178.2,31.02]
[1748367115207,40.84748352,178.32,178.2,31.02]
[1748367115412,9.82748352,178.29,178.2,31.02]
[1748367115708,0.04188482,178.28,178.24,0.03715019]
[1748367116505,0.04188482,178.28,178.26,5.6067]
[1748367117411,0.04188482,178.28,178.24,0.03715019]
[1748367117808,5.6067,178.27,178.24,5.64455019]
[1748367119105,0.04188482,178.28,178.24,0.03715019]
[1748367119309,31.02,178.27,178.24,0.03715019]
[1748367120110,5.6071,178.26,178.24,0.03715019]
[1748367120313,31.02,178.27,178.24,0.03715019]
[1748367120708,5.6072,178.25,178.24,0.03715019]
[1748367121107,9.82748352,178.26,178.16,31.02]
[1748367121311,5.6073,178.25,178.22,5.6079]
[1748367121511,31.02,178.27,178.16,31.02]
[1748367121907,5.6073,178.25,178.16,31.02]
[1748367122110,0.03763492,178.23,178.16,31.02]
[1748367123111,0.03763492,178.23,178.21,5.6083]
[1748367123808,0.03763492,178.23,178.2,5.6088]
[1748367125217,5.64553492,178.23,178.2,5.6088]
[1748367125511,0.03763492,178.23,178.21,5.6084]
[1748367126913,5.64543492,178.23,178.16,31.02]
[1748367127107,0.03763492,178.23,178.16,31.02]
[1748367128818,0.03763492,178.23,178.14,31.04]
[1748367129123,0.04293205,178.2,178.14,31.04]
[1748367129822,0.04293205,178.2,178.18,5.6092]
[1748367130820,5.65183205,178.2,178.18,5.6092]
[1748367131123,5.65183205,178.2,178.17,5.6097]
[1748367131321,5.65183205,178.2,178.14,31.04]
[1748367131515,5.6095,178.18,178.14,31.04]
[1748367131924,0.04293205,178.2,178.14,31.04]
[1748367132119,5.6093,178.19,178.16,5.6099]
[1748367133125,5.6093,178.19,178.17,5.6097]
[1748367133320,5.65173205,178.2,178.17,5.6097]
[1748367133521,0.04293205,178.2,178.14,31.04]
[1748367133924,0.04293205,178.2,178.17,5.6095]
[1748367134121,0.04293205,178.2,178.14,31.04]
[1748367135519,5.65183205,178.2,178.17,5.6095]
[1748367135722,5.65183205,178.2,178.14,31.04]
[1748367135923,0.04293205,178.2,178.18,5.6094]
[1748367137627,5.65173205,178.2,178.17,5.6096]
[1748367138426,5.65173205,178.2,178.14,31.04]
[1748367138731,0.04293205,178.2,178.14,31.04]
[1748367139326,0.04293205,178.2,178.1,9.82748352]
[1748367139519,9.82748352,178.17,178.07,31.0]
[1748367139719,0.03589148,178.14,178.07,31.0]
[1748367139921,0.03589148,178.14,178.11,5.6114]
[1748367140821,9.863375,178.14,178.05,31.0]
[1748367141230,5.6115,178.12,178.09,5.6121]
[1748367141422,9.863375,178.14,178.05,31.0]
[1748367141629,0.03847768,178.11,178.05,31.0]
[1748367142429,0.03847768,178.11,178.1,5.612]
[1748367143525,0.03847768,178.11,178.05,31.0]
[1748367143929,9.8659612,178.11,178.01,31.0]
[1748367144128,0.03843056,178.08,178.01,31.0]
[1748367144333,0.03843056,178.08,178.07,5.6129]
[1748367151435,0.03843056,178.08,178.01,31.0]
[1748367152335,0.03843056,178.08,178.07,5.6129]
[1748367153138,0.03843056,178.08,178.01,31.0]
[1748367153741,5.65103056,178.08,178.05,5.6132]
[1748367154036,0.03843056,178.08,178.01,31.0]
[1748367154230,5.6135,178.06,178.03,5.6141]
[1748367154434,0.03843056,178.08,178.01,31.0]
[1748367154836,5.613,178.07,178.03,5.6141]
[1748367155047,5.613,178.07,178.01,31.0]
[1748367155237,0.03843056,178.08,178.01,31.0]
[1748367155935,5.6131,178.07,178.04,5.6136]
[1748367157229,31.02,178.07,177.97,31.02]
[1748367157430,0.04079201,178.04,177.97,31.02]
[1748367157734,0.04079201,178.04,178.02,5.6142]
[1748367157935,0.04079201,178.04,177.97,31.02]
[1748367158746,0.04079201,178.04,178.03,5.6141]
[1748367160245,0.04079201,178.04,178.02,5.6144]
[1748367160445,5.65479201,178.04,178.02,5.6144]
[1748367160845,0.04079201,178.04,178.02,5.6144]
[1748367161044,0.04079201,178.04,178.03,5.6141]
[1748367162141,0.04079201,178.04,178.02,5.6143]
[1748367163245,0.04079201,178.04,178.03,5.6141]
[1748367165250,0.04079201,178.04,178.02,5.6143]
[1748367165745,0.04079201,178.04,177.97,144.56]
[1748367166844,0.04079201,178.04,178.03,5.6141]
[1748367167744,5.6141,178.03,177.97,31.02]
[1748367167939,0.04079201,178.04,177.97,31.02]
[1748367168347,5.6145,178.02,177.99,5.6154]
[1748367168847,5.6148,178.01,177.98,5.6156]
[1748367169247,0.04079201,178.04,177.97,31.02]
[1748367169548,5.6153,178.0,177.97,5.616]
[1748367169743,5.65521863,178.0,177.97,5.616]
[1748367169945,5.65521863,178.0,177.93,30.98]
[1748367169946,0.03991863,178.0,177.93,30.98]
[1748367170148,0.03991863,178.0,177.98,5.6154]
[1748367171648,0.03991863,178.0,177.99,5.6154]
[1748367180757,1.863e-05,178.0,177.99,5.6154]
[1748367180955,30.98,178.11,178.06,5.6129]
[1748367181155,36.5918,178.11,178.01,9.82748352]
[1748367181455,30.98,178.11,178.01,9.82748352]
[1748367181653,30.98,178.11,178.06,5.613]
[1748367182054,0.03652138,178.1,178.07,0.03558216]
[1748367183053,0.03652138,178.1,178.07,5.64848216]
[1748367183260,0.03652138,178.1,178.07,0.03558216]
[1748367185963,0.03652138,178.1,178.09,5.6123]
[1748367188658,0.03652138,178.1,178.07,5.64838216]
[1748367189059,0.03652138,178.1,178.07,0.03558216]
[1748367189956,31.01652138,178.1,178.07,0.03558216]
[1748367190464,5.6126,178.09,178.07,0.03558216]
[1748367190862,31.01652138,178.1,178.07,0.03558216]
[1748367191166,5.6126,178.08,178.07,0.03558216]
[1748367194266,36.62862138,178.1,178.07,5.64848216]
[1748367194460,31.01652138,178.1,178.07,0.03558216]
[1748367194866,31.01652138,178.1,178.07,5.64848216]
[1748367195569,5.6123,178.09,178.07,0.03558216]
[1748367195762,31.01652138,178.1,178.07,0.03558216]
[1748367196164,36.62862138,178.1,178.07,5.64828216]
[1748367198270,36.62862138,178.1,178.07,0.03558216]
[1748367198467,5.6123,178.09,178.07,0.03558216]
[1748367198667,31.01652138,178.1,178.07,0.03558216]
[1748367199167,5.6125,178.09,178.07,0.03558216]
[1748367200267,36.62852138,178.1,178.07,5.64848216]
[1748367200573,0.03652138,178.1,178.07,0.03558216]
[1748367200964,0.03652138,178.1,178.09,5.6123]
[1748367202263,2.138e-05,178.1,178.09,36.5123]
[1748367208071,2.138e-05,178.1,178.07,0.03558216]
[1748367208275,5.6126,178.08,178.07,0.03558216]
[1748367211669,5.6124,178.09,178.07,0.03558216]
[1748367213973,2.138e-05,178.1,178.07,0.03558216]
[1748367214179,2.138e-05,178.1,178.07,30.93558216]
[1748367214376,2.138e-05,178.1,178.09,5.6123]
[1748367214582,2.138e-05,178.1,178.07,30.93558216]
[1748367214968,2.138e-05,178.1,178.07,36.54838216]
[1748367215369,2.138e-05,178.1,178.07,30.93558216]
[1748367215570,2.138e-05,178.1,178.09,5.6123]
[1748367216286,2.138e-05,178.1,178.07,30.93558216]
[1748367216287,2.138e-05,178.1,178.07,36.54828216]
[1748367217483,2.138e-05,178.1,178.07,30.93558216]
[1748367219580,2.138e-05,178.1,178.07,36.54848216]
[1748367219783,2.138e-05,178.1,178.07,30.93558216]
[1748367220776,2.138e-05,178.1,178.08,5.6126]
[1748367220975,2.138e-05,178.1,178.07,30.93558216]
[1748367223080,2.138e-05,178.1,178.07,36.54848216]
[1748367223679,5.61202138,178.1,178.07,30.93558216]
[1748367223883,2.138e-05,178.1,178.07,30.93558216]
[1748367224187,5.6125,178.09,178.07,30.93558216]
[1748367225111,5.61202138,178.1,178.07,36.54848216]
[1748367226784,5.6123,178.09,178.07,30.93558216]
[1748367227093,2.138e-05,178.1,178.07,30.93558216]
[1748367227984,2.138e-05,178.1,178.07,0.03558216]
[1748367228192,5.6126,178.08,178.07,0.03558216]
[1748367236288,5.62,178.08,177.88,9.82748352]
[1748367236487,30.82,178.07,177.93,515.72]
[1748367236793,5.6164,177.96,177.93,515.72]
[1748367237189,5.65189182,177.96,177.93,515.75732951]
[1748367237787,5.65189182,177.96,177.93,30.85732951]
[1748367238187,5.617,177.94,177.93,0.03732951]
[1748367238397,0.03549182,177.96,177.93,0.03732951]
[1748367239191,5.6168,177.95,177.93,0.03732951]
[1748367239391,0.03549182,177.96,177.93,0.03732951]
[1748367241498,0.03549182,177.96,177.95,5.6167]
[1748367242305,0.03549182,177.96,177.94,5.6169]
[1748367242500,0.03549182,177.96,177.93,0.03732951]
[1748367242802,0.03549182,177.96,177.95,5.6167]
[1748367247701,9.182e-05,177.96,177.95,5.6167]
[1748367252409,9.182e-05,177.96,177.95,118.8167]
[1748367254511,30.82,178.07,178.06,5.6132]
[1748367254811,5.6121,178.1,178.0,30.82]
[1748367255017,30.82,178.11,178.07,5.6127]
[1748367255516,30.85575732,178.11,178.07,0.03649982]
[1748367255911,36.46755732,178.11,178.07,0.03649982]
[1748367256209,36.46755732,178.11,178.08,5.6123]
[1748367256405,36.46755732,178.11,178.07,0.03649982]
[1748367256406,30.85575732,178.11,178.07,0.03649982]
[1748367256815,30.85575732,178.11,178.08,5.6125]
[1748367257012,30.85575732,178.11,178.07,0.03649982]
[1748367257319,30.85575732,178.11,178.1,5.612]
[1748367257516,30.85575732,178.11,178.07,0.03649982]
[1748367257910,0.03575732,178.11,178.07,0.03649982]
[1748367258219,0.03575732,178.11,178.1,5.612]
[1748367259007,5.732e-05,178.11,178.1,36.352]
[1748367259216,30.74,178.24,178.1,40.56748352]
[1748367259819,30.74,178.24,178.18,5.6092]
[1748367260018,30.74,178.24,178.15,30.74]
[1748367260220,0.04233154,178.21,178.18,0.0390328]
[1748367260421,5.65103154,178.21,178.18,0.0390328]
[1748367261122,0.04233154,178.21,178.18,0.0390328]
[1748367261621,5.6091,178.2,178.18,0.0390328]
[1748367262014,0.04233154,178.21,178.18,5.6484328]
[1748367262211,0.04233154,178.21,178.18,0.0390328]
[1748367262922,5.6091,178.19,178.18,0.0390328]
[1748367271621,5.6101,178.17,178.13,5.6108]
[1748367272030,5.6101,178.17,178.14,5.6107]
[1748367272327,40.54748352,178.19,178.1,30.74]
[1748367272524,40.54748352,178.19,178.13,0.04266825]
[1748367272525,0.0363794,178.16,178.13,0.04266825]
[1748367272717,5.6107,178.14,178.13,0.04266825]
[1748367272922,0.0363794,178.16,178.13,0.04266825]
[1748367275029,5.6466794,178.16,178.13,0.04266825]
[1748367275528,0.0363794,178.16,178.13,0.04266825]
[1748367275928,5.6465794,178.16,178.13,0.04266825]
[1748367276321,0.0363794,178.16,178.13,0.04266825]
[1748367277431,5.6105,178.15,178.13,0.04266825]
[1748367278934,0.0363794,178.16,178.13,0.04266825]
[1748367279826,0.0363794,178.16,178.15,5.6104]
[1748367281027,7.94e-05,178.16,178.15,36.3304]
[1748367293146,7.94e-05,178.16,178.15,5.6104]
[1748367295742,7.94e-05,178.16,178.14,5.6107]
[1748367296246,7.94e-05,178.16,178.13,5.65366825]
[1748367296247,5.6101794,178.16,178.13,5.65366825]
[1748367296432,7.94e-05,178.16,178.13,0.04266825]
[1748367298033,7.94e-05,178.16,178.15,5.6104]
[1748367300943,7.94e-05,178.16,178.15,11.2304]
[1748367301148,9.82748352,178.29,178.15,5.62]
[1748367301347,9.82748352,178.29,178.17,9.82748352]
[1748367301550,9.82748352,178.29,178.18,112.88]
[1748367301737,9.82748352,178.29,178.26,5.6067]
[1748367302246,9.87027112,178.29,178.26,0.03919619]
[1748367302451,0.0427876,178.29,178.27,5.6064]
[1748367302748,0.0427876,178.29,178.26,0.03919619]
[1748367303144,9.87027112,178.29,178.26,0.03919619]
[1748367306345,5.6063,178.28,178.26,0.03919619]
[1748367307944,5.6066,178.27,178.26,0.03919619]
[1748367312855,5.6064,178.28,178.26,0.03919619]
[1748367313449,5.6488876,178.29,178.26,0.03919619]
[1748367315256,5.6488876,178.29,178.26,5.64589619]
[1748367315961,0.0427876,178.29,178.26,5.64589619]
[1748367316658,5.6487876,178.29,178.26,5.64589619]
[1748367317060,0.0427876,178.29,178.26,0.03919619]
[1748367317765,0.0427876,178.29,178.28,5.6063]
[1748367321469,0.0427876,178.29,178.26,0.03919619]
[1748367323073,5.6488876,178.29,178.26,0.03919619]
[1748367323365,0.0427876,178.29,178.26,0.03919619]
[1748367323569,0.0427876,178.29,178.26,5.64609619]
[1748367323970,0.0427876,178.29,178.26,0.03919619]
[1748367324164,0.0427876,178.29,178.28,5.6063]
[1748367325371,8.76e-05,178.29,178.28,5.6063]
[1748367325671,8.76e-05,178.29,178.28,11.2063]
[1748367326878,30.56,178.41,178.28,5.6]
[1748367327073,484.5,178.54,178.32,9.82748352]
[1748367327379,9.82748352,178.49,178.39,5.6028]
[1748367327575,30.56,178.48,178.39,5.6028]
[1748367327772,0.04174447,178.45,178.42,0.03966067]
[1748367328571,5.64274447,178.45,178.42,0.03966067]
[1748367328766,0.04174447,178.45,178.42,0.03966067]
[1748367328978,9.82748352,178.58,178.42,0.03966067]
[1748367329274,5.5979,178.55,178.48,5.5997]
[1748367329582,40.38748352,178.58,178.48,5.5997]
[1748367329772,5.5981,178.54,178.48,5.5997]
[1748367329972,5.5981,178.54,178.51,0.03979764]
[1748367330173,5.64124316,178.54,178.51,0.04256599]
[1748367330376,0.04314316,178.54,178.51,0.04256599]
[1748367331678,5.64134316,178.54,178.51,0.04256599]
[1748367331977,0.04314316,178.54,178.51,0.04256599]
[1748367332374,5.5988,178.52,178.51,0.04256599]
[1748367334174,5.5985,178.53,178.51,0.04256599]
[1748367334574,30.60314316,178.54,178.51,0.04256599]
[1748367334771,5.5987,178.53,178.51,0.04256599]
[1748367334981,0.04314316,178.54,178.51,0.04256599]
[1748367335775,5.5988,178.52,178.51,0.04256599]
[1748367336173,0.04314316,178.54,178.51,0.04256599]
[1748367336580,5.5987,178.53,178.51,0.04256599]
[1748367336782,0.04314316,178.54,178.51,0.04256599]
[1748367337387,5.5987,178.53,178.51,0.04256599]
[1748367339383,0.04314316,178.54,178.51,0.04256599]
[1748367341381,5.64154316,178.54,178.51,0.04256599]
[1748367341782,5.5988,178.52,178.51,0.04256599]
[1748367342087,9.82748352,178.51,178.41,30.54]
[1748367342287,5.5997,178.5,178.45,5.6007]
[1748367342675,9.82748352,178.51,178.45,5.6007]
[1748367342884,0.04177541,178.5,178.46,5.64110707]
[1748367343280,0.04177541,178.5,178.46,0.04060707]
[1748367344188,5.64137541,178.5,178.46,5.64100707]
[1748367344888,0.04177541,178.5,178.46,5.64100707]
[1748367345090,0.04177541,178.5,178.46,0.04060707]
[1748367345892,5.64117541,178.5,178.46,5.64100707]
[1748367346186,0.04177541,178.5,178.46,0.04060707]
[1748367346387,0.04177541,178.5,178.47,5.6003]
[1748367346981,5.64117541,178.5,178.47,5.6003]
[1748367347193,0.04177541,178.5,178.46,0.04060707]
[1748367348087,5.5999,178.49,178.46,0.04060707]
[1748367348884,5.6002,178.48,178.46,0.04060707]
[1748367349094,0.04177541,178.5,178.46,0.04060707]
[1748367349495,5.5998,178.49,178.46,0.04060707]
[1748367349789,0.04177541,178.5,178.46,0.04060707]
[1748367350093,5.5998,178.49,178.46,0.04060707]
[1748367350589,16.05056529,178.49,178.3,16.05056529]
[1748367350788,30.72,178.5,178.34,16.05056529]
[1748367351585,5.6,178.48,178.45,5.6009]
[1748367351790,0.03927175,178.48,178.45,0.04110772]
[1748367352093,0.03927175,178.48,178.45,5.64190772]
[1748367352391,0.03927175,178.48,178.45,0.04110772]
[1748367352589,0.03927175,178.48,178.47,5.6003]
[1748367353289,0.03927175,178.48,178.46,5.6005]
[1748367353793,0.03927175,178.48,178.45,0.04110772]
[1748367354587,0.03927175,178.48,178.47,5.6003]
[1748367359097,0.03927175,178.48,178.45,0.04110772]
[1748367360290,0.03927175,178.48,178.46,5.6006]
[1748367360491,0.03927175,178.48,178.45,0.04110772]
[1748367360692,5.63937175,178.48,178.45,0.04110772]
[1748367361090,0.03927175,178.48,178.45,0.04110772]
[1748367361294,0.03927175,178.48,178.47,5.6003]
[1748367370508,0.03927175,178.48,178.45,0.04110772]
[1748367370811,5.6011,178.45,178.38,30.72]
[1748367371196,5.6004,178.47,178.38,30.72]
[1748367371399,40.56827362,178.49,178.38,30.72]
[1748367371604,0.03821589,178.45,178.42,0.04073195]
[1748367371804,0.03821589,178.45,178.44,5.601]
[1748367382212,1.589e-05,178.45,178.44,5.601]
[1748367383315,1.589e-05,178.45,178.43,31.1]
[1748367384006,1.589e-05,178.45,178.43,36.7013]
[1748367384212,1.589e-05,178.45,178.43,5.6013]
[1748367384411,1.589e-05,178.45,178.42,0.04073195]
[1748367384609,1.589e-05,178.45,178.43,5.6014]
[1748367384812,1.589e-05,178.45,178.42,0.04073195]
[1748367385220,1.589e-05,178.45,178.44,5.6013]
[1748367386419,1.589e-05,178.45,178.44,36.7013]
[1748367388128,5.598,178.55,178.52,5.5986]
[1748367389221,5.63830717,178.55,178.52,5.64004603]
[1748367389528,5.5982,178.54,178.52,0.04144603]
[1748367389823,0.04030717,178.55,178.52,0.04144603]
[1748367390619,5.5985,178.53,178.52,0.04144603]
[1748367391013,5.5985,178.53,178.44,31.1]
[1748367391014,9.84827362,178.53,178.44,31.1]
[1748367391219,5.5999,178.49,178.45,5.6008]
[1748367391420,31.1,178.52,178.44,31.1]
[1748367391724,40.94827362,178.53,178.44,31.1]
[1748367391929,9.88622796,178.5,178.47,0.04226955]
[1748367392225,0.03795434,178.5,178.47,0.04226955]
[1748367393135,0.03795434,178.5,178.47,5.64236955]
[1748367393435,0.03795434,178.5,178.47,0.04226955]
[1748367394124,0.03795434,178.5,178.48,5.6]
[1748367394326,0.03795434,178.5,178.47,0.04226955]
[1748367394928,0.03795434,178.5,178.48,5.5998]
[1748367396028,0.03795434,178.5,178.49,5.5997]
[1748367396432,0.03795434,178.5,178.47,0.04226955]
[1748367397332,0.03795434,178.5,178.48,5.5998]
[1748367398232,5.63735434,178.5,178.47,5.64256955]
[1748367398429,0.03795434,178.5,178.47,0.04226955]
[1748367398832,0.03795434,178.5,178.48,5.5998]
[1748367399530,0.03795434,178.5,178.49,5.5997]
[1748367401429,0.03795434,178.5,178.48,5.6]
[1748367401935,0.03795434,178.5,178.47,0.04226955]
[1748367402837,0.03795434,178.5,178.49,5.5997]
[1748367407139,0.03795434,178.5,178.47,0.04226955]
[1748367407441,5.63745434,178.5,178.47,0.04226955]
[1748367407843,5.63745434,178.5,178.47,5.64246955]
[1748367408042,5.5997,178.49,178.47,0.04226955]
[1748367408237,0.03795434,178.5,178.47,0.04226955]
[1748367408436,0.03795434,178.5,178.47,5.64256955]
[1748367409444,5.63755434,178.5,178.47,0.04226955]
[1748367410443,5.63755434,178.5,178.47,5.64236955]
[1748367412246,0.03795434,178.5,178.48,5.6]
[1748367413247,0.03795434,178.5,178.49,5.5997]
[1748367414244,0.03795434,178.5,178.48,5.5999]
[1748367414640,0.03795434,178.5,178.47,0.04226955]
[1748367416148,5.63755434,178.5,178.47,5.64256955]
[1748367416946,0.03795434,178.5,178.47,0.04226955]
[1748367417544,0.03795434,178.5,178.49,5.5997]
[1748367419753,0.03795434,178.5,178.47,0.04226955]
[1748367420455,5.5998,178.49,178.47,0.04226955]
[1748367420646,0.03795434,178.5,178.47,0.04226955]
[1748367420952,5.5997,178.49,178.47,0.04226955]
[1748367423254,5.63745434,178.5,178.47,0.04226955]
[1748367423457,5.63745434,178.5,178.47,5.64256955]
[1748367423755,5.63745434,178.5,178.47,0.04226955]
[1748367424352,0.03795434,178.5,178.47,0.04226955]
[1748367425056,5.63755434,178.5,178.47,0.04226955]
[1748367425558,5.63755434,178.5,178.47,5.64256955]
[1748367425861,0.03795434,178.5,178.47,0.04226955]
[1748367426256,5.6,178.49,178.47,0.04226955]
[1748367426557,0.03795434,178.5,178.47,0.04226955]
[1748367426749,5.5997,178.49,178.47,0.04226955]
[1748367427259,9.84827362,178.49,178.47,0.04226955]
[1748367427452,9.84827362,178.49,178.39,30.76]
[1748367427860,5.6018,178.43,178.39,5.6026]
[1748367428457,5.64467093,178.43,178.39,5.62678381]
[1748367429252,9.89114455,178.43,178.39,0.02418381]
[1748367429757,5.6025,178.4,178.39,0.02418381]
[1748367432560,5.6034,178.38,178.31,30.76]
[1748367432955,30.78,178.41,178.31,30.76]
[1748367432956,9.84827362,178.39,178.31,30.76]
[1748367433166,5.6038,178.36,178.31,30.76]
[1748367433361,5.6038,178.36,178.27,30.78]
[1748367433559,0.04015388,178.33,178.27,30.78]
[1748367435159,0.04015388,178.33,178.3,5.6055]
[1748367435356,0.04015388,178.33,178.27,30.78]
[1748367435758,0.04015388,178.33,178.32,5.6051]
[1748367436357,0.04015388,178.33,178.27,30.78]
[1748367436759,0.04015388,178.33,178.29,5.6058]
[1748367436958,0.04015388,178.33,178.27,30.78]
[1748367437163,0.04015388,178.33,178.23,30.78]
[1748367437458,0.03612288,178.3,178.23,30.78]
[1748367437860,0.03612288,178.3,178.29,5.6058]